[Event "AUT-ch 2018"]
[Site "Vienna"]
[Date "2018.07.26"]
[Round "6"]
[White "Pacher, Simon"]
[Black "Knoll, Hermann"]
[Result "0-1"]
[ECO "C68"]
[WhiteElo "2097"]
[BlackElo "2338"]
[Annotator "NA"]
[PlyCount "94"]
[EventDate "2018.07.22"]
[EventType "swiss"]
[EventCountry "AUT"]
[SourceTitle "playchess.com"]
[Source "ChessBase"]
[SourceQuality "1"]
[TimeControl "40/5400+30:1800+30"]

1. e4 {[%emt 0:00:12]} e5 {[%emt 0:00:26]} 2. Nf3 {[%emt 0:00:10]} Nc6 {[%emt 0:00:14]} 3. Bb5 {[%emt 0:00:10]} a6 {[%emt 0:00:55]} 4. Bxc6 {[%emt 0:00:59]} dxc6 {[%emt 0:00:06]} 5. O-O {[%emt 0:00:14]} Be6 {[%emt 0:00:39]} 6. Nc3 {[%emt 0:01:08]} f6 {[%emt 0:00:32]} 7. d4 {[%emt 0:00:28]} exd4 {[%emt 0:00:19]} 8. Nxd4 {[%emt 0:00:51]} Bc4 {[%emt 0:00:54]} 9. Re1 {[%emt 0:00:22]} c5 {[%emt 0:00:03]} 10. Nf5 {[%emt 0:01:08]} Qxd1 {[%emt 0:00:52]} 11. Rxd1 {[%emt 0:00:10]} g6 {[%emt 0:01:16]} 12. Ne3 {[%emt 0:00:22]} Be6 {[%emt 0:02:42]} 13. Ned5 {[%emt 0:01:27]} O-O-O {[%emt 0:03:24]} 14. Be3 {[%emt 0:04:49]} g5 {[%emt 0:07:30]} 15. Rd2 {[%emt 0:01:12]} Re8 {[%emt 0:00:28]} 16. a4 {[%emt 0:11:55]} b6 {[%emt 0:03:27]} 17. e5 {[%emt 0:11:10]} fxe5 {[%emt 0:07:22]} 18. Bxg5 {[%emt 0:00:59]} Bh6 {[%emt 0:12:34]} 19. h4 {[%emt 0:04:00]} Bxg5 {[%emt 0:00:19]} 20. hxg5 {[%emt 0:00:06]} Bf5 {[%emt 0:03:00]} 21. Ne3 {[%emt 0:05:41]} Bg6 {[%emt 0:00:29]} 22. Re1 {[%emt 0:04:54]} h6 {[%emt 0:04:25]} 23. gxh6 {[%emt 0:04:14]} Nxh6 {[%emt 0:00:04]} 24. Nc4 {[%emt 0:00:22]} Nf7 {[%emt 0:00:07]} 25. Rde2 {[%emt 0:01:48]} Rd8 {[%emt 0:04:03]} 26. Nb1 {[%emt 0:08:01]} Rh4 {[%emt 0:02:05]} 27. Nba3 {[%emt 0:00:41]} e4 {[%emt 0:00:28]} 28. Re3 {[%emt 0:05:00]} Rdh8 {[%emt 0:02:34]} 29. f3 {[%emt 0:00:47]} exf3 {[%emt 0:00:07]} 30. Rxf3 {[%emt 0:00:08]} Ng5 {[%emt 0:00:17]} 31. Rg3 {[%emt 0:04:53]} Rh1+ {[%emt 0:00:21]} 32. Kf2 {[%emt 0:00:27]} Ne4+ {[%emt 0:00:36]} 33. Rxe4 {[%emt 0:00:02]} Bxe4 {[%emt 0:00:09]} 34. Ne3 {[%emt 0:02:46]} Bc6 {[%emt 0:01:09]} 35. b3 {[%emt 0:00:43]} R1h4 {[%emt 0:00:12]} 36. Nac4 {[%emt 0:00:34]} Rf8+ {[%emt 0:00:34]} 37. Kg1 {[%emt 0:00:44]} Re4 {[%emt 0:00:15]} 38. Rg6 {[%emt 0:04:08]} Be8 {[%emt 0:00:17]} 39. Rg3 {[%emt 0:00:09]} Bd7 {[%emt 0:00:35]} 40. Nd2 {[%emt 0:01:04]} Ree8 {[%emt 0:30:13]} 41. Ndc4 {[%emt 0:32:03]} Rg8 {[%emt 0:00:11]} 42. Rf3 {[%emt 0:00:29]} Bc6 {[%emt 0:00:20]} 43. Rf6 {[%emt 0:00:12]} Bb7 {[%emt 0:01:52]} 44. Rf5 {[%emt 0:00:54]} Rg3 {[%emt 0:04:02]} 45. Kf2 {[%emt 0:01:33]} Reg8 {[%emt 0:00:58]} 46. Ne5 {[%emt 0:00:11]} Bxg2 {[%emt 0:02:12]} 47. N5g4 {[%emt 0:00:05]} R3xg4 {[%emt 0:00:37]} 0-1

[Event "AUT-ch 2018"]
[Site "Vienna"]
[Date "2018.07.26"]
[Round "6"]
[White "Pernerstorfer, Johannes"]
[Black "Polterauer, Chiara"]
[Result "0-1"]
[ECO "A13"]
[WhiteElo "2066"]
[BlackElo "2169"]
[Annotator "NA"]
[PlyCount "100"]
[EventDate "2018.07.22"]
[EventType "swiss"]
[EventCountry "AUT"]
[SourceTitle "playchess.com"]
[Source "ChessBase"]
[SourceQuality "1"]
[TimeControl "40/5400+30:1800+30"]

1. c4 {[%emt 0:00:00]} e6 {[%emt 0:00:24]} 2. e4 {[%emt 0:00:08]} d5 {[%emt 0:01:14]} 3. cxd5 {[%emt 0:01:23]} exd5 {[%emt 0:00:07]} 4. exd5 {[%emt 0:00:34]} Nf6 {[%emt 0:01:03]} 5. Nf3 {[%emt 0:00:55]} Nxd5 {[%emt 0:02:04]} 6. Bc4 {[%emt 0:00:51]} Qe7+ {[%emt 0:14:01]} 7. Kf1 {[%emt 0:02:21]} Nb6 {[%emt 0:00:51]} 8. Bb3 {[%emt 0:00:22]} Nc6 {[%emt 0:01:23]} 9. d4 {[%emt 0:00:33]} Bg4 {[%emt 0:03:59]} 10. Be3 {[%emt 0:03:03]} O-O-O {[%emt 0:01:34]} 11. Nc3 {[%emt 0:00:13]} f6 {[%emt 0:06:35]} 12. a4 {[%emt 0:04:57]} Na5 {[%emt 0:05:28]} 13. Qc2 {[%emt 0:06:25]} Nxb3 {[%emt 0:05:03]} 14. Qxb3 {[%emt 0:00:10]} Be6 {[%emt 0:00:07]} 15. Qc2 {[%emt 0:02:07]} Qb4 {[%emt 0:01:32]} 16. Nd2 {[%emt 0:04:22]} Nc4 {[%emt 0:03:09]} 17. d5 {[%emt 0:04:49]} Nxd2+ {[%emt 0:08:32]} 18. Qxd2 {[%emt 0:04:46]} Qc4+ {[%emt 0:00:04]} 19. Qe2 {[%emt 0:01:12]} Bxd5 {[%emt 0:01:01]} 20. Nxd5 {[%emt 0:00:35]} Qxe2+ {[%emt 0:04:44]} 21. Kxe2 {[%emt 0:00:03]} Rxd5 {[%emt 0:00:06]} 22. Rhc1 {[%emt 0:02:11]} a6 {[%emt 0:02:24]} 23. Rc4 {[%emt 0:00:24]} Bd6 {[%emt 0:00:32]} 24. b4 {[%emt 0:03:44]} Re8 {[%emt 0:00:39]} 25. b5 {[%emt 0:00:20]} axb5 {[%emt 0:03:03]} 26. Rg4 {[%emt 0:02:47]} g6 {[%emt 0:01:22]} 27. Rh4 {[%emt 0:00:36]} Re7 {[%emt 0:03:53]} 28. axb5 {[%emt 0:00:24]} Rxb5 {[%emt 0:00:29]} 29. Ra8+ {[%emt 0:00:51]} Kd7 {[%emt 0:00:05]} 30. Rh8 {[%emt 0:00:17]} Rb2+ {[%emt 0:10:09]} 31. Kd3 {[%emt 0:00:14]} c5 {[%emt 0:01:08]} 32. R8xh7 {[%emt 0:01:03]} Rxh7 {[%emt 0:01:09]} 33. Rxh7+ {[%emt 0:00:01]} Ke6 {[%emt 0:00:06]} 34. Ke4 {[%emt 0:03:23]} b5 {[%emt 0:01:59]} 35. Rh6 {[%emt 0:00:54]} f5+ {[%emt 0:04:48]} 36. Kf3 {[%emt 0:00:10]} Kf6 {[%emt 0:00:31]} 37. h4 {[%emt 0:00:26]} f4 {[%emt 0:00:26]} 38. h5 {[%emt 0:00:46]} fxe3 {[%emt 0:00:15]} 39. Rxg6+ {[%emt 0:00:15]} Ke7 {[%emt 0:02:07]} 40. fxe3 {[%emt 0:00:32]} Be5 {[%emt 0:34:42]} 41. Ke4 {[%emt 0:30:20]} Bf6 {[%emt 0:02:43]} 42. g4 {[%emt 0:01:46]} Rg2 {[%emt 0:00:00]} 43. Rg8 {[%emt 0:00:00]} c4 {[%emt 0:00:00]} 44. Kf3 {[%emt 0:00:00]} Rg1 {[%emt 0:00:00]} 45. Kf2 {[%emt 0:00:00]} Kf7 {[%emt 0:00:00]} 46. Rb8 {[%emt 0:00:00]} Rb1 {[%emt 0:00:00]} 47. Rb7+ {[%emt 0:00:00]} Kf8 {[%emt 0:00:00]} 48. h6 {[%emt 0:00:00]} c3 {[%emt 0:00:00]} 49. Rc7 {[%emt 0:00:00]} Rh1 {[%emt 0:00:00]} 50. g5 {[%emt 0:00:00]} c2 {[%emt 0:00:00]} 0-1

[Event "AUT-ch 2018"]
[Site "Vienna"]
[Date "2018.07.26"]
[Round "6"]
[White "Mayrhuber, Nikola"]
[Black "Bauer, Thomas"]
[Result "0-1"]
[ECO "A67"]
[WhiteElo "2046"]
[BlackElo "2181"]
[Annotator "NA"]
[PlyCount "64"]
[EventDate "2018.07.22"]
[EventType "swiss"]
[EventCountry "AUT"]
[SourceTitle "playchess.com"]
[Source "ChessBase"]
[SourceQuality "1"]
[TimeControl "40/5400+30:1800+30"]

1. d4 {[%emt 0:00:00]} Nf6 {[%emt 0:00:07]} 2. c4 {[%emt 0:00:00]} c5 {[%emt 0:00:04]} 3. d5 {[%emt 0:00:00]} e6 {[%emt 0:00:03]} 4. Nc3 {[%emt 0:00:00]} exd5 {[%emt 0:00:04]} 5. cxd5 {[%emt 0:00:00]} d6 {[%emt 0:00:03]} 6. e4 {[%emt 0:00:15]} g6 {[%emt 0:00:06]} 7. f4 {[%emt 0:00:39]} Bg7 {[%emt 0:00:26]} 8. Bb5+ {[%emt 0:00:25]} Nfd7 {[%emt 0:00:05]} 9. Nf3 {[%emt 0:00:58]} O-O {[%emt 0:00:08]} 10. O-O {[%emt 0:00:15]} Na6 {[%emt 0:02:08]} 11. Kh1 {[%emt 0:08:41]} Rb8 {[%emt 0:01:43]} 12. f5 {[%emt 0:24:35]} Nc7 {[%emt 0:06:17]} 13. Bg5 {[%emt 0:06:09]} f6 {[%emt 0:06:04]} 14. Bxd7 {[%emt 0:04:18]} Qxd7 {[%emt 0:05:34]} 15. Bf4 {[%emt 0:04:50]} b5 {[%emt 0:02:00]} 16. g4 {[%emt 0:05:37]} Re8 {[%emt 0:06:21]} 17. Nd2 {[%emt 0:02:15]} Ba6 {[%emt 0:08:59]} 18. b4 {[%emt 0:08:30]} cxb4 {[%emt 0:12:48]} 19. Ne2 {[%emt 0:00:09]} h5 {[%emt 0:06:38]} 20. Nd4 {[%emt 0:03:26]} Bb7 {[%emt 0:07:52]} 21. h4 {[%emt 0:11:14]} g5 {[%emt 0:10:29]} 22. Bg3 {[%emt 0:00:15]} Bh6 {[%emt 0:03:04]} 23. gxh5 {[%emt 0:03:36]} Rbc8 {[%emt 0:05:58]} 24. Rg1 {[%emt 0:04:16]} Kh7 {[%emt 0:01:33]} 25. hxg5 {[%emt 0:05:01]} Bxg5 {[%emt 0:00:30]} 26. Ne6 {[%emt 0:00:11]} Be3 {[%emt 0:05:43]} 27. Bh4 {[%emt 0:04:58]} Bxg1 {[%emt 0:03:37]} 28. Qxg1 {[%emt 0:00:03]} Rg8 {[%emt 0:01:09]} 29. Qd4 {[%emt 0:00:24]} Nxe6 {[%emt 0:00:37]} 30. fxe6 {[%emt 0:00:16]} Qg7 {[%emt 0:00:28]} 31. Rg1 {[%emt 0:01:41]} Rc1 {[%emt 0:00:59]} 32. Nf3 {[%emt 0:02:03]} Qg2# {[%emt 0:00:13]} 0-1

[Event "AUT-ch 2018"]
[Site "Vienna"]
[Date "2018.07.26"]
[Round "6"]
[White "Zanon, Magnus"]
[Black "Charaus, Florian"]
[Result "1-0"]
[ECO "A01"]
[WhiteElo "2022"]
[BlackElo "2115"]
[Annotator "NA"]
[PlyCount "49"]
[EventDate "2018.07.22"]
[EventType "swiss"]
[EventCountry "AUT"]
[SourceTitle "playchess.com"]
[Source "ChessBase"]
[SourceQuality "1"]
[TimeControl "40/5400+30:1800+30"]

1. b3 {[%emt 0:00:00]} Nf6 {[%emt 0:02:47]} 2. Bb2 {[%emt 0:00:00]} e6 {[%emt 0:00:05]} 3. e3 {[%emt 0:00:00]} Be7 {[%emt 0:00:05]} 4. f4 {[%emt 0:00:00]} c5 {[%emt 0:00:18]} 5. Nf3 {[%emt 0:00:39]} b6 {[%emt 0:01:08]} 6. Bd3 {[%emt 0:04:00]} Ba6 {[%emt 0:20:36]} 7. Qe2 {[%emt 0:04:06]} Bxd3 {[%emt 0:07:40]} 8. Qxd3 {[%emt 0:00:08]} Nc6 {[%emt 0:00:20]} 9. a3 {[%emt 0:00:11]} d5 {[%emt 0:05:53]} 10. Nc3 {[%emt 0:04:35]} O-O {[%emt 0:05:30]} 11. O-O {[%emt 0:06:30]} Na5 {[%emt 0:06:14]} 12. Qe2 {[%emt 0:02:41]} d4 {[%emt 0:01:51]} 13. exd4 {[%emt 0:07:33]} cxd4 {[%emt 0:02:06]} 14. Ne4 {[%emt 0:01:22]} d3 {[%emt 0:02:23]} 15. cxd3 {[%emt 0:00:29]} Nxb3 {[%emt 0:01:05]} 16. Rae1 {[%emt 0:03:25]} Nc5 {[%emt 0:03:15]} 17. Ne5 {[%emt 0:00:41]} Qd5 {[%emt 0:04:24]} 18. Rf3 {[%emt 0:04:04]} Rad8 {[%emt 0:09:30]} 19. Nf2 {[%emt 0:05:25]} Rc8 {[%emt 0:05:24]} 20. Rg3 {[%emt 0:00:40]} Na4 {[%emt 0:00:48]} 21. Ba1 {[%emt 0:00:32]} Bc5 {[%emt 0:01:45]} 22. Nd7 {[%emt 0:02:25]} Qxd7 {[%emt 0:05:47]} 23. Rxg7+ {[%emt 0:00:47]} Kxg7 {[%emt 0:02:29]} 24. Qg4+ {[%emt 0:00:05]} Kh6 {[%emt 0:00:16]} 25. Qg5# 1-0

[Event "AUT-ch 2018"]
[Site "Vienna"]
[Date "2018.07.27"]
[Round "7"]
[White "Balinov, Ilia"]
[Black "Huber, Martin Christian"]
[Result "1/2-1/2"]
[ECO "A26"]
[WhiteElo "2478"]
[BlackElo "2374"]
[Annotator "ChessBase"]
[PlyCount "73"]
[EventDate "2018.07.22"]
[EventType "swiss"]
[EventCountry "AUT"]
[SourceTitle "playchess.com"]
[Source "ChessBase"]
[SourceQuality "1"]
[TimeControl "40/5400+30:1800+30"]

1. c4 {[%emt 0:00:00]} g6 {[%emt 0:00:37]} 2. g3 {[%emt 0:01:17]} Bg7 {[%emt 0:00:34]} 3. Bg2 {[%emt 0:00:04]} e5 {[%emt 0:01:42]} 4. Nc3 {[%emt 0:00:36]} Nc6 {[%emt 0:00:06]} 5. d3 {[%emt 0:03:29]} d6 {[%emt 0:01:53]} 6. Rb1 {[%emt 0:03:39]} a5 {[%emt 0:01:04]} 7. Nf3 {[%emt 0:06:54]} Nf6 {[%emt 0:00:50]} 8. O-O {[%emt 0:00:32]} O-O {[%emt 0:00:25]} 9. Bg5 {[%emt 0:00:20]} h6 {[%emt 0:00:33]} 10. Bxf6 {[%emt 0:00:06]} Bxf6 {[%emt 0:00:05]} 11. a3 {[%emt 0:00:26]} Bg7 {[%emt 0:01:07]} 12. b4 {[%emt 0:00:23]} axb4 {[%emt 0:00:04]} 13. axb4 {[%emt 0:00:04]} Re8 {[%emt 0:00:59]} 14. b5 {[%emt 0:04:55]} Ne7 {[%emt 0:00:14]} 15. Qb3 {[%emt 0:00:37]} Be6 {[%emt 0:02:48]} 16. Nd2 {[%emt 0:15:04]} c6 {[%emt 0:00:45]} 17. Nde4 {[%emt 0:10:00]} f5 {[%emt 0:10:40]} 18. Nd2 {[%emt 0:00:15]} d5 19. cxd5 {[%emt 0:07:21]} Nxd5 {[%emt 0:15:34]} 20. bxc6 {[%emt 0:30:15]} bxc6 {[%emt 0:02:35]} 21. Nxd5 {[%emt 0:06:42]} cxd5 {[%emt 0:02:37]} 22. Rfc1 {[%emt 0:00:18]} Qa5 {[%emt 0:14:26]} 23. Rc6 {[%emt 0:01:42]} Bf7 {[%emt 0:05:13]} 24. Qc2 {[%emt 0:00:27]} e4 {[%emt 0:03:54]} 25. Nf1 {[%emt 0:01:05]} Qa2 {[%emt 0:01:32]} 26. h4 {[%emt 0:01:25]} Qxc2 {[%emt 0:20:02]} 27. Rxc2 {[%emt 0:00:02]} Rec8 {[%emt 0:00:38]} 28. Rxc8+ {[%emt 0:00:57]} Rxc8 {[%emt 0:00:01]} 29. dxe4 {[%emt 0:00:19]} dxe4 {[%emt 0:03:24]} 30. h5 {[%emt 0:02:07]} Bd4 {[%emt 0:04:54]} 31. hxg6 {[%emt 0:00:20]} Bxg6 {[%emt 0:00:02]} 32. e3 {[%emt 0:00:18]} Bf6 {[%emt 0:01:52]} 33. Rb6 {[%emt 0:00:13]} Rf8 {[%emt 0:00:17]} 34. Nd2 {[%emt 0:00:15]} h5 {[%emt 0:01:38]} 35. Bf1 {[%emt 0:00:24]} Kg7 {[%emt 0:00:32]} 36. Bc4 {[%emt 0:02:11]} h4 {[%emt 0:01:08]} 37. gxh4 {[%emt 0:00:29]} 1/2-1/2

[Event "AUT-ch 2018"]
[Site "Vienna"]
[Date "2018.07.27"]
[Round "7"]
[White "Stanec, Nikolaus"]
[Black "Dragnev, Valentin"]
[Result "1-0"]
[ECO "D40"]
[WhiteElo "2465"]
[BlackElo "2499"]
[Annotator "ChessBase"]
[PlyCount "139"]
[EventDate "2018.07.22"]
[EventType "swiss"]
[EventCountry "AUT"]
[SourceTitle "playchess.com"]
[Source "ChessBase"]
[SourceQuality "1"]
[TimeControl "40/5400+30:1800+30"]

1. Nf3 {[%emt 0:00:00]} d5 {[%emt 0:00:08]} 2. d4 {[%emt 0:00:18]} Nf6 {[%emt 0:00:09]} 3. c4 {[%emt 0:00:06]} e6 {[%emt 0:00:17]} 4. Nc3 {[%emt 0:00:06]} c5 {[%emt 0:00:32]} 5. e3 {[%emt 0:01:14]} Nc6 {[%emt 0:00:16]} 6. cxd5 {[%emt 0:02:21]} exd5 {[%emt 0:00:32]} 7. Bb5 {[%emt 0:01:03]} cxd4 {[%emt 0:00:34]} 8. exd4 {[%emt 0:02:53]} Bd6 {[%emt 0:01:06]} 9. O-O {[%emt 0:02:07]} O-O {[%emt 0:00:05]} 10. Bg5 {[%emt 0:00:52]} Bg4 {[%emt 0:19:57]} 11. Be2 {[%emt 0:02:57]} Re8 {[%emt 0:09:17]} 12. h3 {[%emt 0:02:07]} Be6 {[%emt 0:00:20]} 13. Bd3 {[%emt 0:07:09]} h6 {[%emt 0:02:44]} 14. Bh4 {[%emt 0:00:23]} a6 {[%emt 0:07:22]} 15. Qd2 {[%emt 0:07:44]} Rc8 {[%emt 0:01:41]} 16. Rad1 {[%emt 0:01:19]} Be7 {[%emt 0:18:16]} 17. Rfe1 {[%emt 0:01:55]} b5 {[%emt 0:05:02]} 18. a3 {[%emt 0:10:02]} Na5 {[%emt 0:05:17]} 19. Bb1 {[%emt 0:02:21]} Nd7 {[%emt 0:02:17]} 20. Bxe7 {[%emt 0:02:19]} Rxe7 {[%emt 0:00:08]} 21. Ne5 {[%emt 0:08:50]} Nf8 {[%emt 0:02:01]} 22. Nd3 {[%emt 0:04:17]} Nc4 {[%emt 0:02:59]} 23. Qc1 {[%emt 0:00:40]} Nd7 {[%emt 0:03:16]} 24. b4 {[%emt 0:04:06]} Re8 {[%emt 0:04:47]} 25. Nc5 {[%emt 0:00:37]} Rc6 {[%emt 0:01:05]} 26. a4 {[%emt 0:03:49]} bxa4 {[%emt 0:00:51]} 27. N3xa4 {[%emt 0:00:11]} Nf6 {[%emt 0:01:05]} 28. Bd3 {[%emt 0:02:00]} Qd6 {[%emt 0:02:53]} 29. Bxc4 {[%emt 0:09:46]} dxc4 {[%emt 0:00:02]} 30. d5 {[%emt 0:00:05]} Nxd5 {[%emt 0:02:54]} 31. Nc3 {[%emt 0:00:10]} Rcc8 {[%emt 0:05:46]} 32. Qd2 {[%emt 0:01:51]} Red8 {[%emt 0:00:34]} 33. Nb7 {[%emt 0:01:02]} Qxb4 {[%emt 0:00:05]} 34. Nxd8 {[%emt 0:00:11]} Rxd8 {[%emt 0:00:21]} 35. Nxd5 {[%emt 0:01:28]} Qxd2 {[%emt 0:00:09]} 36. Rxd2 {[%emt 0:00:07]} Rxd5 {[%emt 0:00:30]} 37. Rxd5 {[%emt 0:00:07]} Bxd5 {[%emt 0:00:01]} 38. Re8+ {[%emt 0:01:32]} Kh7 {[%emt 0:00:01]} 39. Re5 {[%emt 0:00:19]} Be6 {[%emt 0:03:07]} 40. Ra5 {[%emt 0:00:35]} g5 {[%emt 0:30:57]} 41. Rxa6 {[%emt 0:30:46]} h5 {[%emt 0:00:00]} 42. f3 {[%emt 0:00:00]} h4 {[%emt 0:00:00]} 43. Kf2 {[%emt 0:00:00]} Kg6 {[%emt 0:00:00]} 44. Ke3 {[%emt 0:00:00]} Kf6 {[%emt 0:00:00]} 45. Ke4 {[%emt 0:00:00]} Kg6 {[%emt 0:00:00]} 46. Ke5 {[%emt 0:00:00]} Kg7 {[%emt 0:00:00]} 47. Rc6 {[%emt 0:00:00]} Kg6 {[%emt 0:00:00]} 48. Rd6 {[%emt 0:00:00]} Kg7 {[%emt 0:00:00]} 49. Rd8 {[%emt 0:00:00]} c3 {[%emt 0:00:00]} 50. Rd3 {[%emt 0:00:00]} c2 {[%emt 0:00:00]} 51. Rc3 {[%emt 0:00:00]} Bb3 {[%emt 0:00:00]} 52. Kf5 {[%emt 0:00:00]} f6 {[%emt 0:00:00]} 53. Rc7+ {[%emt 0:00:49]} Bf7 {[%emt 0:00:06]} 54. f4 {[%emt 0:00:40]} c1=Q {[%emt 0:05:50]} 55. Rxc1 {[%emt 0:00:09]} Bg6+ {[%emt 0:00:01]} 56. Kg4 {[%emt 0:00:44]} Be4 {[%emt 0:00:02]} 57. fxg5 {[%emt 0:01:20]} fxg5 {[%emt 0:00:01]} 58. Kxg5 {[%emt 0:00:16]} Bxg2 {[%emt 0:00:01]} 59. Kxh4 {[%emt 0:00:09]} Be4 {[%emt 0:00:12]} 60. Kg5 {[%emt 0:00:15]} Bd3 {[%emt 0:00:06]} 61. Rc7+ {[%emt 0:00:26]} Kg8 {[%emt 0:00:10]} 62. Kh6 {[%emt 0:01:23]} Be4 {[%emt 0:00:21]} 63. h4 {[%emt 0:01:03]} Bd3 {[%emt 0:00:07]} 64. Rc3 {[%emt 0:00:26]} Bb1 {[%emt 0:01:46]} 65. Rg3+ {[%emt 0:00:07]} Kf7 {[%emt 0:00:11]} 66. Rg7+ {[%emt 0:00:06]} Kf8 {[%emt 0:00:12]} 67. Rg5 {[%emt 0:00:05]} Bc2 {[%emt 0:00:29]} 68. Kh5 {[%emt 0:00:08]} Bd1+ {[%emt 0:00:10]} 69. Kg6 {[%emt 0:00:07]} Ba4 {[%emt 0:00:03]} 70. Kf6 {[%emt 0:00:10]} 1-0

[Event "AUT-ch 2018"]
[Site "Vienna"]
[Date "2018.07.27"]
[Round "7"]
[White "Halvax, Georg"]
[Black "Schwabeneder, Florian"]
[Result "1/2-1/2"]
[ECO "C01"]
[WhiteElo "2433"]
[BlackElo "2431"]
[Annotator "NA"]
[PlyCount "60"]
[EventDate "2018.07.22"]
[EventType "swiss"]
[EventCountry "AUT"]
[SourceTitle "playchess.com"]
[Source "ChessBase"]
[SourceQuality "1"]
[TimeControl "40/5400+30:1800+30"]

1. e4 {[%emt 0:00:00]} e6 {[%emt 0:00:40]} 2. d4 {[%emt 0:00:00]} d5 {[%emt 0:00:08]} 3. exd5 {[%emt 0:00:12]} exd5 {[%emt 0:00:09]} 4. Nc3 {[%emt 0:00:16]} Bb4 {[%emt 0:05:12]} 5. Bd3 {[%emt 0:00:29]} Nc6 {[%emt 0:00:21]} 6. Nf3 {[%emt 0:00:13]} Nge7 {[%emt 0:06:10]} 7. O-O {[%emt 0:01:01]} O-O {[%emt 0:10:42]} 8. Ne2 {[%emt 0:04:19]} Bf5 {[%emt 0:05:56]} 9. Ng3 {[%emt 0:01:47]} Bxd3 {[%emt 0:06:16]} 10. Qxd3 {[%emt 0:00:09]} Bd6 {[%emt 0:00:17]} 11. Ng5 {[%emt 0:05:21]} g6 {[%emt 0:13:41]} 12. c3 {[%emt 0:10:29]} Qd7 {[%emt 0:05:57]} 13. Bd2 {[%emt 0:01:44]} f6 {[%emt 0:03:33]} 14. Nh3 {[%emt 0:02:13]} Nd8 {[%emt 0:09:34]} 15. Rae1 {[%emt 0:03:04]} Nf7 {[%emt 0:01:12]} 16. Nf4 {[%emt 0:04:37]} Bxf4 {[%emt 0:01:50]} 17. Bxf4 {[%emt 0:00:06]} Rae8 {[%emt 0:01:02]} 18. Re2 {[%emt 0:01:40]} Nc8 {[%emt 0:04:17]} 19. Rfe1 {[%emt 0:01:51]} c6 {[%emt 0:00:19]} 20. h4 {[%emt 0:15:48]} Ncd6 {[%emt 0:04:38]} 21. h5 {[%emt 0:00:57]} Rxe2 {[%emt 0:01:33]} 22. Rxe2 {[%emt 0:00:46]} Kg7 {[%emt 0:01:56]} 23. hxg6 {[%emt 0:17:54]} hxg6 {[%emt 0:00:08]} 24. Qd2 {[%emt 0:02:12]} Re8 {[%emt 0:02:48]} 25. Qe1 {[%emt 0:00:12]} Rxe2 {[%emt 0:03:22]} 26. Qxe2 {[%emt 0:00:14]} Kf8 {[%emt 0:05:56]} 27. f3 {[%emt 0:03:30]} Nf5 {[%emt 0:00:33]} 28. Qd3 {[%emt 0:00:50]} Nxg3 {[%emt 0:00:29]} 29. Bxg3 {[%emt 0:00:16]} Kg7 {[%emt 0:00:25]} 30. Bf4 {[%emt 0:01:37]} Qe6 {[%emt 0:03:13]} 1/2-1/2

[Event "AUT-ch 2018"]
[Site "Vienna"]
[Date "2018.07.27"]
[Round "7"]
[White "Blohberger, Felix"]
[Black "Schreiner, Peter"]
[Result "1/2-1/2"]
[ECO "C85"]
[WhiteElo "2420"]
[BlackElo "2467"]
[Annotator "ChessBase"]
[PlyCount "68"]
[EventDate "2018.07.22"]
[EventType "swiss"]
[EventCountry "AUT"]
[SourceTitle "playchess.com"]
[Source "ChessBase"]
[SourceQuality "1"]
[TimeControl "40/5400+30:1800+30"]

1. e4 {[%emt 0:00:00]} e5 {[%emt 0:00:06]} 2. Nf3 {[%emt 0:00:00]} Nc6 {[%emt 0:00:05]} 3. Bb5 {[%emt 0:00:01]} a6 {[%emt 0:00:08]} 4. Ba4 {[%emt 0:00:04]} Nf6 {[%emt 0:00:05]} 5. O-O {[%emt 0:00:08]} Be7 {[%emt 0:00:47]} 6. Bxc6 {[%emt 0:00:28]} dxc6 {[%emt 0:00:24]} 7. d3 {[%emt 0:00:05]} Nd7 {[%emt 0:04:21]} 8. Be3 {[%emt 0:02:11]} c5 {[%emt 0:05:05]} 9. Nc3 {[%emt 0:00:58]} O-O {[%emt 0:02:04]} 10. a4 {[%emt 0:02:56]} a5 {[%emt 0:04:37]} 11. Nd2 {[%emt 0:01:11]} Nb8 {[%emt 0:10:01]} 12. f4 {[%emt 0:10:45]} exf4 {[%emt 0:00:32]} 13. Bxf4 {[%emt 0:00:11]} Be6 {[%emt 0:05:33]} 14. Qe1 {[%emt 0:06:02]} Nc6 {[%emt 0:02:53]} 15. Nf3 {[%emt 0:03:01]} c4 {[%emt 0:08:11]} 16. Rd1 {[%emt 0:12:33]} cxd3 {[%emt 0:08:20]} 17. Qg3 {[%emt 0:04:48]} Nb4 {[%emt 0:08:05]} 18. cxd3 {[%emt 0:07:38]} f6 {[%emt 0:06:43]} 19. d4 {[%emt 0:19:42]} Bd6 {[%emt 0:03:23]} 20. d5 {[%emt 0:00:30]} Bxf4 {[%emt 0:03:48]} 21. Qxf4 {[%emt 0:00:21]} Bd7 {[%emt 0:00:21]} 22. Nd4 {[%emt 0:01:45]} Re8 {[%emt 0:02:00]} 23. Kh1 {[%emt 0:04:18]} Rc8 {[%emt 0:05:16]} 24. Qg3 {[%emt 0:03:19]} Qe7 {[%emt 0:01:40]} 25. Nf5 {[%emt 0:01:30]} Bxf5 {[%emt 0:00:34]} 26. Rxf5 {[%emt 0:00:06]} Qd6 {[%emt 0:01:39]} 27. Qg4 {[%emt 0:04:51]} Qd7 {[%emt 0:05:00]} 28. Qf3 {[%emt 0:05:32]} b6 {[%emt 0:06:55]} 29. h4 {[%emt 0:01:15]} Na6 {[%emt 0:01:02]} 30. h5 {[%emt 0:01:14]} h6 {[%emt 0:00:19]} 31. Rf1 {[%emt 0:05:10]} Nc5 {[%emt 0:00:39]} 32. Qg4 {[%emt 0:01:04]} Re5 {[%emt 0:01:54]} 33. Qg6 {[%emt 0:00:39]} Rxf5 {[%emt 0:01:52]} 34. Rxf5 {[%emt 0:00:06]} Qf7 1/2-1/2